bitfinex/quotes_BTCUSD_20250928
["timestamp","ask_amount","ask_price","bid_price","bid_amount"]
[1759079094455,1.03869096,110550.0,110540.0,1.87144145]
[1759079094626,0.83893124,110550.0,110540.0,1.87144145]
[1759079094837,0.83893124,110550.0,110540.0,1.14559335]
[1759079095044,0.83893124,110550.0,110540.0,1.90459335]
[1759079095262,0.83893124,110550.0,110540.0,2.29944665]
[1759079095479,0.83893124,110550.0,110540.0,1.54344665]
[1759079095676,0.83893124,110550.0,110540.0,2.65544665]
[1759079095911,0.83893124,110550.0,110540.0,2.66836665]
[1759079096049,0.83893124,110550.0,110540.0,2.67041665]
[1759079096511,0.83893124,110550.0,110540.0,1.54044665]
[1759079096888,0.83893124,110550.0,110540.0,2.29333665]
[1759079097139,0.83893124,110550.0,110540.0,2.29128665]
[1759079098075,0.83893124,110550.0,110540.0,2.29333665]
[1759079098645,0.83893124,110550.0,110540.0,2.29636665]
[1759079099802,0.83893124,110550.0,110540.0,2.46037827]
[1759079100046,0.83893124,110550.0,110540.0,0.94783167]
[1759079100267,0.83893124,110550.0,110540.0,2.07940497]
[1759079100459,0.83893124,110550.0,110540.0,1.37719499]
[1759079100660,0.83893124,110550.0,110540.0,0.37690169]
[1759079100863,0.83893124,110550.0,110540.0,1.14380309]
[1759079101084,0.83893124,110550.0,110540.0,1.42832309]
[1759079101216,0.83893124,110550.0,110540.0,1.45847499]
[1759079101438,0.83893124,110550.0,110540.0,0.75402979]
[1759079101649,0.83893124,110550.0,110540.0,0.85661817]
[1759079101852,0.83893124,110550.0,110540.0,0.8414147]
[1759079102079,0.83893124,110550.0,110540.0,0.8865666]
[1759079102395,0.83893124,110550.0,110540.0,1.2503399]
[1759079102603,0.83893124,110550.0,110540.0,1.2453399]
[1759079102958,0.83893124,110550.0,110540.0,1.2353399]
[1759079103354,0.83893124,110550.0,110540.0,1.2433399]
[1759079104207,0.83893124,110550.0,110540.0,1.2523399]
[1759079110747,0.83893124,110550.0,110540.0,1.43326988]
[1759079111021,0.83893124,110550.0,110540.0,1.43531988]
[1759079111500,0.83893124,110550.0,110540.0,2.39548947]
[1759079111708,0.83893124,110550.0,110540.0,2.44548947]
[1759079111911,0.83893124,110550.0,110540.0,2.28147785]
[1759079112073,0.83893124,110550.0,110540.0,2.27347785]
[1759079112317,0.83893124,110550.0,110540.0,2.26447785]
[1759079112498,0.83893124,110550.0,110540.0,2.28647785]
[1759079112721,0.83893124,110550.0,110540.0,2.27647785]
[1759079113084,0.83893124,110550.0,110540.0,2.28847785]
[1759079113734,0.83893124,110550.0,110540.0,1.53259785]
[1759079113985,0.83893124,110550.0,110540.0,2.27635785]
[1759079114237,0.83893124,110550.0,110540.0,2.29135785]
[1759079114462,0.83893124,110550.0,110540.0,1.53559785]
[1759079114672,0.83893124,110550.0,110540.0,2.29139785]
[1759079116215,0.83893124,110550.0,110540.0,1.53559785]
[1759079116424,0.83893124,110550.0,110540.0,2.29135785]
[1759079117405,0.83893124,110550.0,110540.0,2.45536947]
[1759079117615,0.83893124,110550.0,110540.0,2.44036947]
[1759079118168,0.83893124,110550.0,110540.0,2.44636947]
[1759079118600,0.83893124,110550.0,110540.0,2.46036947]
[1759079119045,0.83893124,110550.0,110540.0,2.55583947]
[1759079119254,0.67759913,110550.0,110540.0,2.55583947]
[1759079119875,0.67759913,110550.0,110540.0,2.54183947]
[1759079120067,0.67759913,110550.0,110540.0,2.52383947]
[1759079120513,0.67759913,110550.0,110540.0,2.54483947]
[1759079121156,0.67759913,110550.0,110540.0,2.56083947]
[1759079121558,0.67759913,110550.0,110540.0,2.98899824]
[1759079121782,0.67759913,110550.0,110540.0,3.00699824]
[1759079121988,0.67759913,110550.0,110540.0,3.02999824]
[1759079122179,0.51358751,110550.0,110540.0,2.55732662]
[1759079122411,0.51358751,110550.0,110540.0,3.69016662]
[1759079123624,0.51358751,110550.0,110540.0,2.55732662]
[1759079123807,0.50857201,110550.0,110540.0,3.69008662]
[1759079124425,0.50857201,110550.0,110540.0,2.55732662]
[1759079124589,0.50857201,110550.0,110540.0,3.69008662]
[1759079124770,0.50161887,110550.0,110540.0,2.55732662]
[1759079124975,0.50161887,110550.0,110540.0,3.69004662]
[1759079125787,0.50161887,110550.0,110540.0,2.55732662]
[1759079126016,0.50161887,110550.0,110540.0,3.69004662]
[1759079126378,0.50161887,110550.0,110540.0,4.81620792]
[1759079127059,0.50161887,110550.0,110540.0,3.68348792]
[1759079127193,0.50161887,110550.0,110540.0,4.81492932]
[1759079127420,0.50161887,110550.0,110540.0,3.56931065]
[1759079127632,0.50161887,110550.0,110540.0,4.72562385]
[1759079128442,0.50161887,110550.0,110540.0,4.67562385]
[1759079129042,0.50161887,110550.0,110540.0,4.20442385]
[1759079129251,0.50161887,110550.0,110540.0,4.72566385]
[1759079129818,0.50161887,110550.0,110540.0,4.25438385]
[1759079130045,0.50161887,110550.0,110540.0,4.72562385]
[1759079131639,0.50161887,110550.0,110540.0,4.72554385]
[1759079132276,0.50161887,110550.0,110540.0,3.41524385]
[1759079132430,0.50161887,110550.0,110540.0,4.54784385]
[1759079133579,0.50161887,110550.0,110540.0,1.84908255]
[1759079133790,0.50161887,110550.0,110540.0,2.19109355]
[1759079134018,0.50161887,110550.0,110540.0,3.29088065]
[1759079134237,0.50161887,110550.0,110540.0,1.81300545]
[1759079134453,0.50161887,110550.0,110540.0,2.54564545]
[1759079134675,0.50161887,110550.0,110540.0,2.90518255]
[1759079134940,0.50161887,110550.0,110540.0,2.18439255]
[1759079135169,0.50161887,110550.0,110540.0,2.94003255]
[1759079135879,0.50161887,110550.0,110540.0,2.18439255]
[1759079136099,0.50161887,110550.0,110540.0,2.94003255]
[1759079138723,0.50161887,110550.0,110540.0,2.94537255]
[1759079140091,0.50161887,110550.0,110540.0,2.89537255]
[1759079140303,0.50161887,110550.0,110540.0,2.94537255]
[1759079141318,0.50161887,110550.0,110540.0,2.94218255]
[1759079142094,0.50161887,110550.0,110540.0,2.94537255]
[1759079144071,0.50161887,110550.0,110540.0,2.94198255]
[1759079144225,0.50161887,110550.0,110540.0,2.89198255]
[1759079144402,0.50161887,110550.0,110540.0,2.94198255]
[1759079144630,0.50161887,110550.0,110540.0,2.94517255]
[1759079150637,0.50161887,110550.0,110540.0,2.18973255]
[1759079150841,0.50161887,110550.0,110540.0,3.32213255]
[1759079155797,0.50161887,110550.0,110540.0,2.18973255]
[1759079155963,0.50161887,110550.0,110540.0,3.32209255]
[1759079156563,0.50161887,110550.0,110540.0,4.54372385]
[1759079157000,0.31233685,110550.0,110540.0,4.54372385]
[1759079160096,0.31233685,110550.0,110540.0,4.54356385]
[1759079160878,0.31233685,110550.0,110540.0,4.63294932]
[1759079161402,0.31233685,110550.0,110540.0,3.50074932]
[1759079161649,0.31233685,110550.0,110540.0,4.63290932]
[1759079162039,0.04293685,110550.0,110540.0,5.08000932]
[1759079162691,0.02357803,110550.0,110540.0,5.08000932]
[1759079162896,1e-08,110550.0,110540.0,5.08000932]
[1759079163088,0.06209324,110560.0,110550.0,0.79653551]
[1759079163245,0.04558324,110560.0,110550.0,2.29908228]
[1759079163444,0.04558324,110560.0,110550.0,2.32568698]
[1759079163872,0.04558324,110560.0,110550.0,2.35288851]
[1759079164293,0.04558324,110560.0,110550.0,2.36888851]
[1759079164489,0.0456294,110560.0,110550.0,2.38988851]
[1759079165517,0.0456294,110560.0,110550.0,2.10596851]
[1759079165712,0.0456294,110560.0,110550.0,3.23804851]
[1759079165957,0.06944746,110570.0,110560.0,0.45651915]
[1759079166165,0.05293746,110570.0,110560.0,1.45658658]
[1759079166366,0.05293746,110570.0,110560.0,1.48313658]
[1759079166586,0.05293746,110570.0,110560.0,3.44945755]
[1759079166827,0.05293746,110570.0,110560.0,3.44951225]
[1759079167028,0.05293746,110570.0,110560.0,4.32499081]
[1759079167146,0.05293746,110570.0,110560.0,4.34299081]
[1759079167361,0.08394809,110590.0,110580.0,0.65101643]
[1759079167571,0.08399424,110590.0,110580.0,2.15521773]
[1759079167778,0.01103815,110590.0,110580.0,2.55667243]
[1759079168186,0.01103815,110590.0,110580.0,2.58753159]
[1759079168393,0.01103815,110590.0,110580.0,2.11633159]
[1759079168614,0.01103815,110590.0,110580.0,2.58757159]
[1759079169258,0.01103815,110590.0,110580.0,1.80167243]
[1759079169488,0.01103815,110590.0,110580.0,2.46247243]
[1759079169701,0.01103815,110590.0,110580.0,2.56871243]
[1759079170140,0.01103815,110590.0,110580.0,2.09751243]
[1759079170358,0.01103815,110590.0,110580.0,1.85925023]
[1759079170570,0.01103815,110590.0,110580.0,2.23894313]
[1759079171203,0.01103815,110590.0,110580.0,1.76774313]
[1759079171425,0.01103815,110590.0,110580.0,2.23894313]
[1759079171892,0.01103815,110590.0,110580.0,1.48386313]
[1759079172130,0.01103815,110590.0,110580.0,2.23894313]
[1759079172545,0.01103815,110590.0,110580.0,1.48386313]
[1759079173021,0.01103815,110590.0,110580.0,2.23890313]
[1759079173699,0.01103815,110590.0,110580.0,2.23886313]
[1759079175799,0.01103815,110590.0,110580.0,2.24096313]
[1759079177123,0.01103815,110590.0,110580.0,2.24398313]
[1759079179875,0.01103815,110590.0,110580.0,2.51338313]
[1759079180897,0.01103815,110590.0,110580.0,2.60885313]
[1759079181106,0.01103815,110590.0,110580.0,2.51338313]
[1759079183928,0.01103815,110590.0,110580.0,2.49838313]
[1759079184142,0.01103815,110590.0,110580.0,2.48638313]
[1759079184319,0.01103815,110590.0,110580.0,2.51838313]
[1759079184603,0.01103815,110590.0,110580.0,2.56618346]
[1759079184813,0.01103815,110590.0,110580.0,2.59338202]
[1759079186285,0.01103815,110590.0,110580.0,2.59324174]
[1759079187554,0.01103815,110590.0,110580.0,2.59316174]
[1759079188264,0.11339561,110620.0,110610.0,0.05]
[1759079188518,0.09921098,110620.0,110610.0,0.42796]
[1759079188724,0.09921098,110620.0,110610.0,0.4524147]
[1759079189579,0.09921098,110620.0,110610.0,0.4614147]
[1759079189816,0.09921098,110620.0,110610.0,0.4694147]
[1759079191536,0.11339385,110620.0,110610.0,0.4694147]
[1759079194128,0.11339385,110620.0,110610.0,0.4995666]
[1759079195015,0.08182191,110620.0,110610.0,0.68250207]
[1759079195241,0.08182191,110620.0,110610.0,1.06106903]
[1759079195494,0.06763904,110620.0,110610.0,1.06106903]
[1759079196167,0.06763904,110620.0,110610.0,1.05206903]
[1759079196372,0.06763904,110620.0,110610.0,0.67410903]
[1759079196579,0.06763904,110620.0,110610.0,0.67510903]
[1759079196798,0.06763904,110620.0,110610.0,1.43266903]
[1759079197013,0.06763904,110620.0,110610.0,0.30979207]
[1759079197225,0.06763904,110620.0,110610.0,0.69079207]
[1759079197441,0.06763904,110620.0,110610.0,1.83946903]
[1759079197655,0.07461191,110640.0,110630.0,0.04980008]
[1759079197867,0.07461191,110640.0,110630.0,0.24866113]
[1759079197868,0.07475039,110640.0,110630.0,0.24866113]
[1759079198076,0.07475039,110640.0,110630.0,0.28513476]
[1759079198285,0.07475039,110640.0,110630.0,0.86595198]
[1759079198701,0.07475039,110640.0,110630.0,0.10440668]
[1759079198912,0.07475039,110640.0,110630.0,0.86608668]
[1759079199634,0.07475039,110640.0,110630.0,0.87208668]
[1759079199853,0.07475039,110640.0,110630.0,0.87808668]
[1759079201831,0.07475039,110640.0,110630.0,0.11640668]
[1759079202072,0.07475039,110640.0,110630.0,0.87812668]
[1759079202636,0.36004038,110650.0,110640.0,0.04980008]
[1759079202838,0.1499373,110660.0,110640.0,0.04980008]
[1759079203055,0.37531696,110650.0,110640.0,0.07425478]
[1759079203271,0.1499373,110660.0,110640.0,0.36493478]
[1759079203507,0.52525426,110660.0,110640.0,0.36493478]
[1759079203735,0.53943364,110660.0,110640.0,0.36493478]
[1759079203993,0.53943364,110660.0,110640.0,0.36793478]
[1759079204338,0.16411668,110660.0,110640.0,0.36793478]
[1759079204545,0.53943364,110660.0,110640.0,0.36793478]
[1759079204969,0.16411668,110660.0,110640.0,0.36793478]
[1759079205183,0.53943364,110660.0,110640.0,0.36793478]
[1759079205966,0.53943364,110660.0,110640.0,0.36493478]
[1759079206175,0.53943364,110660.0,110640.0,0.36893478]
[1759079206390,0.53943364,110660.0,110640.0,0.07425478]
[1759079206596,5.64007196,110650.0,110640.0,0.16845478]
[1759079206821,5.64007196,110650.0,110640.0,0.45937478]
[1759079206822,0.37531696,110650.0,110640.0,0.45937478]
[1759079207032,0.37531696,110650.0,110640.0,0.07625478]
[1759079207256,0.71531696,110650.0,110640.0,0.34133478]
[1759079207665,0.71531696,110650.0,110640.0,0.07425478]
[1759079207885,5.98007196,110650.0,110640.0,0.45973478]
[1759079208095,5.98007196,110650.0,110640.0,0.46373478]
[1759079208540,6.35538892,110650.0,110640.0,0.07825478]
[1759079208766,6.35538892,110650.0,110640.0,0.36973478]
[1759079208961,6.35538892,110650.0,110640.0,0.37273478]
[1759079209179,5.98007196,110650.0,110640.0,0.37273478]
[1759079210031,5.98007196,110650.0,110640.0,0.37277478]
[1759079210503,6.35538892,110650.0,110640.0,0.37277478]
[1759079210714,5.98007196,110650.0,110640.0,0.37277478]
[1759079211175,5.98007196,110650.0,110640.0,0.37289478]
[1759079211918,0.71531696,110650.0,110640.0,0.37289478]
[1759079212145,0.71531696,110650.0,110640.0,0.0314547]
[1759079212396,6.42272847,110650.0,110640.0,0.08125478]
[1759079212600,6.67702099,110650.0,110640.0,0.2358147]
[1759079212843,6.70422202,110650.0,110640.0,0.2358147]
[1759079213322,6.64486102,110650.0,110640.0,0.2288147]
[1759079213780,6.46411091,110650.0,110640.0,0.2288147]
[1759079214219,6.46411091,110650.0,110640.0,0.2308147]
[1759079214671,6.46411091,110650.0,110640.0,0.2288147]
[1759079215091,6.64486102,110650.0,110640.0,0.0244547]
[1759079215447,6.46411091,110650.0,110640.0,0.0950147]
[1759079215877,6.46411091,110650.0,110640.0,0.0244547]
[1759079216488,6.64486102,110650.0,110640.0,0.0244547]
[1759079217101,7.05032988,110650.0,110640.0,0.0244547]
[1759079217320,7.06193797,110650.0,110640.0,0.01027259]
[1759079217602,0.34,110620.0,110600.0,0.04980008]
[1759079217983,6.01538892,110610.0,110600.0,0.17413856]
[1759079218636,6.01538892,110610.0,110600.0,0.04993856]
[1759079218864,6.04259873,110610.0,110600.0,0.04993856]
[1759079219741,6.04259873,110610.0,110600.0,0.07458856]
[1759079220859,6.05678524,110610.0,110600.0,0.07658856]
[1759079221987,6.10892313,110610.0,110600.0,0.07658856]
[1759079224121,5.35828921,110610.0,110600.0,0.07658856]
[1759079224325,6.10892313,110610.0,110600.0,0.07658856]
[1759079226338,0.02720981,110610.0,110600.0,0.08177856]
[1759079226553,0.39849696,110620.0,110610.0,0.04980008]
[1759079226746,5.66727718,110620.0,110610.0,0.34839008]
[1759079226954,5.264755,110620.0,110610.0,0.37304008]
[1759079227344,5.98007196,110620.0,110610.0,0.37304008]
[1759079227564,0.71531696,110620.0,110610.0,0.37304008]
[1759079227766,0.37531696,110620.0,110610.0,0.37304008]
[1759079228017,0.39038359,110630.0,110610.0,0.37704008]
[1759079228254,5.604755,110620.0,110610.0,0.47128008]
[1759079228445,0.42570055,110630.0,110620.0,0.04980008]
[1759079228661,5.66727555,110630.0,110620.0,0.34875008]
[1759079228933,6.00727555,110630.0,110620.0,0.37340008]
[1759079229171,5.98007196,110630.0,110620.0,0.37340008]
[1759079230550,5.98007196,110630.0,110620.0,0.37033008]
[1759079230844,5.98007196,110630.0,110620.0,0.37433008]
[1759079231636,5.98007196,110630.0,110620.0,0.37841008]
[1759079232183,5.99425491,110630.0,110620.0,0.37841008]
[1759079232892,5.99425491,110630.0,110620.0,0.08245008]
[1759079233032,5.99425491,110630.0,110620.0,0.37637008]
[1759079233438,5.99425491,110630.0,110620.0,0.37641008]
[1759079233670,5.99425491,110630.0,110620.0,0.37645008]
[1759079233904,6.03204795,110630.0,110620.0,0.08245008]
[1759079234068,6.03204795,110630.0,110620.0,0.37649008]
[1759079234313,5.99425491,110630.0,110620.0,0.37649008]
[1759079234783,5.99425491,110630.0,110620.0,0.08245008]
[1759079235026,5.99425491,110630.0,110620.0,0.37653008]
[1759079236819,6.02145843,110630.0,110620.0,0.37653008]
[1759079237253,6.02145843,110630.0,110620.0,0.37649008]
[1759079237472,6.02145843,110630.0,110620.0,0.37645008]
[1759079237697,5.64614147,110630.0,110620.0,0.08245008]
[1759079237888,6.63012153,110630.0,110620.0,0.03265]
[1759079238131,6.92416153,110630.0,110620.0,0.03265]
[1759079239186,6.92416153,110630.0,110620.0,0.02865]
[1759079239374,6.92420153,110630.0,110620.0,0.02965]
[1759079239595,6.63012153,110630.0,110620.0,0.02965]
[1759079239824,6.54892457,110630.0,110620.0,0.02965]
[1759079240217,6.25480457,110630.0,110620.0,0.02965]
[1759079240638,6.48233826,110630.0,110620.0,0.02965]
[1759079240852,6.48233826,110630.0,110620.0,0.02865]
[1759079241092,6.51765522,110630.0,110620.0,0.02465]
[1759079241306,6.53284066,110630.0,110620.0,0.02465]
[1759079241493,6.53284066,110630.0,110620.0,0.02665]
[1759079241735,6.53284066,110630.0,110620.0,0.02465]
[1759079242346,6.53272066,110630.0,110620.0,0.02465]
[1759079243001,6.66300966,110630.0,110620.0,0.02465]
[1759079246345,6.75172113,110630.0,110620.0,0.02465]
[1759079247552,6.66272966,110630.0,110620.0,0.02465]
[1759079247977,6.64854422,110630.0,110620.0,0.02465]
[1759079248393,7.02459615,110630.0,110620.0,0.02465]
[1759079248612,5.8979103,110630.0,110620.0,0.02465]
[1759079248833,7.02459615,110630.0,110620.0,0.02465]
[1759079249711,7.02467615,110630.0,110620.0,0.02465]
[1759079250346,6.73071615,110630.0,110620.0,0.02465]
[1759079250546,7.02467615,110630.0,110620.0,0.02465]
[1759079251124,7.03882144,110630.0,110620.0,0.02465]
[1759079251310,6.56411866,110630.0,110620.0,0.02465]
[1759079251502,6.85803866,110630.0,110620.0,0.02465]
[1759079251705,6.56411866,110630.0,110620.0,0.02465]
[1759079252160,6.85803866,110630.0,110620.0,0.02465]
[1759079252568,7.03882144,110630.0,110620.0,0.02465]
[1759079253212,7.03890144,110630.0,110620.0,0.02465]
[1759079256736,7.12761291,110630.0,110620.0,0.02465]
[1759079257525,7.03890144,110630.0,110620.0,0.02465]
[1759079257934,7.02471615,110630.0,110620.0,0.02465]
[1759079259795,8.1815539,110630.0,110620.0,0.02465]
[1759079261061,8.19573991,110630.0,110620.0,0.02465]
[1759079264513,8.22152941,110630.0,110620.0,0.02465]
[1759079264731,8.31024088,110630.0,110620.0,0.02465]
[1759079266331,8.36024088,110630.0,110620.0,0.02465]
[1759079267245,8.35924088,110630.0,110620.0,0.02465]
[1759079267471,8.30924088,110630.0,110620.0,0.02465]
[1759079267763,8.36324088,110630.0,110620.0,0.02465]
[1759079268204,1.64750132,110610.0,110600.0,0.00013848]
[1759079268358,6.99618532,110610.0,110600.0,0.00013848]
[1759079268554,7.02110532,110610.0,110600.0,0.00013848]
[1759079268967,7.04831953,110610.0,110600.0,0.00013848]
[1759079269423,7.137031,110610.0,110600.0,0.00013848]
[1759079270177,7.137031,110610.0,110600.0,0.02489848]
[1759079270369,6.843391,110610.0,110600.0,0.02489848]
[1759079270491,7.137031,110610.0,110600.0,0.02489848]
[1759079270696,7.137031,110610.0,110600.0,0.02689848]
[1759079271352,7.15121903,110610.0,110600.0,0.02689848]
[1759079272209,7.21920799,110610.0,110600.0,0.02689848]
[1759079272422,8.37168334,110610.0,110600.0,0.02689848]
[1759079272776,8.10819524,110610.0,110600.0,0.02289848]
[1759079272959,8.40207524,110610.0,110600.0,0.02289848]
[1759079274183,8.40307524,110610.0,110600.0,0.02289848]
[1759079274592,8.10819524,110610.0,110600.0,0.02289848]
[1759079274787,8.40211524,110610.0,110600.0,0.02289848]
[1759079275106,8.40611524,110610.0,110600.0,0.02289848]
[1759079275334,8.11219524,110610.0,110600.0,0.02289848]
[1759079275556,7.27942939,110610.0,110600.0,0.02495848]
[1759079275758,6.98550939,110610.0,110600.0,0.02495848]
[1759079275940,7.27938939,110610.0,110600.0,0.02289848]
[1759079277366,8.40607524,110610.0,110600.0,0.02289848]
[1759079277918,8.11219524,110610.0,110600.0,0.02289848]
[1759079278155,8.40611524,110610.0,110600.0,0.02289848]
[1759079278576,8.11219524,110610.0,110600.0,0.02289848]
[1759079278777,8.31732377,110610.0,110600.0,0.02289848]
[1759079278978,7.19063792,110610.0,110600.0,0.02289848]
[1759079281661,7.19055792,110610.0,110600.0,0.02289848]
[1759079281864,7.17636989,110610.0,110600.0,0.02289848]
[1759079282275,6.88260989,110610.0,110600.0,0.02289848]
[1759079282478,7.21654857,110610.0,110600.0,0.02289848]
[1759079283314,1.52808524,110600.0,110590.0,0.00309]
[1759079283534,8.00341509,110600.0,110590.0,0.00309]
[1759079283742,8.47600509,110600.0,110590.0,0.00515]
[1759079283959,8.50322243,110600.0,110590.0,0.00515]
[1759079284567,8.50422243,110600.0,110590.0,0.00515]
[1759079284853,8.48817985,110600.0,110590.0,0.00515]
[1759079285693,8.48813985,110600.0,110590.0,0.00515]
[1759079286694,8.19465985,110600.0,110590.0,0.00515]
[1759079286954,8.57673132,110600.0,110590.0,0.00515]
[1759079288027,8.48801985,110600.0,110590.0,0.00515]
[1759079289106,8.48789985,110600.0,110590.0,0.00515]
[1759079290719,8.19465985,110600.0,110590.0,0.00515]
[1759079291158,8.46060251,110600.0,110590.0,0.00515]
[1759079291793,8.08504056,110600.0,110590.0,0.00515]
[1759079293171,8.17375203,110600.0,110590.0,0.00515]
[1759079296450,7.88059203,110600.0,110590.0,0.00515]
[1759079296656,6.88129747,110600.0,110590.0,0.05495008]
[1759079297169,7.22129747,110600.0,110590.0,0.05495008]
[1759079299969,7.23548534,110600.0,110590.0,0.05495008]
[1759079300608,8.08479911,110600.0,110590.0,0.00206]
[1759079301442,7.23548534,110600.0,110590.0,0.05479008]
[1759079301696,6.41062339,110600.0,110590.0,0.05479008]
[1759079301926,6.78618534,110600.0,110590.0,0.05479008]
[1759079302200,6.05643552,110600.0,110590.0,0.05479008]
[1759079302438,6.39643552,110600.0,110590.0,0.05479008]
[1759079302917,6.39543552,110600.0,110590.0,0.05479008]
[1759079303168,6.39543552,110600.0,110590.0,0.05879008]
[1759079303552,6.77099747,110600.0,110590.0,0.05879008]
[1759079304180,6.77099747,110600.0,110590.0,0.06379008]
[1759079305190,6.78518452,110600.0,110590.0,0.06379008]
[1759079305605,6.40962257,110600.0,110590.0,0.06379008]
[1759079305813,6.78518452,110600.0,110590.0,0.06379008]
[1759079307362,6.19345904,110600.0,110590.0,0.06379008]
[1759079307574,6.56902099,110600.0,110590.0,0.06379008]
[1759079310442,6.56899111,110600.0,110590.0,0.06379008]
[1759079311253,6.55480406,110600.0,110590.0,0.06379008]
[1759079314012,6.56899109,110600.0,110590.0,0.06379008]
[1759079314228,6.36064894,110600.0,110590.0,0.06379008]
[1759079314866,5.98511687,110600.0,110590.0,0.06379008]
[1759079315295,5.64511687,110600.0,110590.0,0.06379008]
[1759079315719,5.64511687,110600.0,110590.0,0.35615008]
[1759079315927,5.64511687,110600.0,110590.0,0.45039008]
[1759079317023,5.64511687,110600.0,110590.0,0.45035008]
[1759079317231,0.59007287,110600.0,110590.0,0.45035008]
[1759079318280,0.96560494,110600.0,110590.0,0.35096008]
[1759079318499,0.95141791,110600.0,110590.0,0.06386008]
[1759079318733,6.34646191,110600.0,110590.0,0.05880008]
[1759079319168,6.56345422,110600.0,110590.0,0.009]
[1759079319384,6.56345422,110600.0,110590.0,0.05880008]
[1759079319590,6.3826224,110600.0,110590.0,0.05880008]
[1759079319814,6.34646191,110600.0,110590.0,0.05880008]
[1759079320030,6.63922191,110600.0,110590.0,0.05380008]
[1759079320458,6.63922191,110600.0,110590.0,0.05580008]
[1759079320876,6.63922191,110600.0,110590.0,0.05180008]
[1759079321082,6.63922191,110600.0,110590.0,0.05380008]
[1759079322403,6.63922191,110600.0,110590.0,0.004]
[1759079322404,7.1955858,110600.0,110590.0,0.004]
[1759079322612,6.82005373,110600.0,110590.0,0.004]
[1759079323635,6.63954191,110600.0,110590.0,0.004]
[1759079325328,7.2518472,110600.0,110590.0,0.004]
[1759079325525,7.2790656,110600.0,110590.0,0.004]
[1759079325753,7.36777707,110600.0,110590.0,0.004]
[1759079325969,7.36777707,110600.0,110590.0,0.002]
[1759079326792,7.36801707,110600.0,110590.0,0.002]
[1759079326997,0.52084817,110590.0,110580.0,0.02421]
[1759079327224,6.62931871,110590.0,110560.0,0.11496008]
[1759079327440,0.71553207,110570.0,110560.0,0.14167623]
[1759079327689,0.71553207,110570.0,110560.0,0.12006623]
[1759079327690,5.77057607,110570.0,110560.0,0.12006623]
[1759079327898,5.79395607,110570.0,110560.0,0.12006623]
[1759079328288,5.82117447,110570.0,110560.0,0.12006623]
[1759079330317,5.84784182,110570.0,110560.0,0.12506623]
[1759079330739,5.84784182,110570.0,110560.0,0.12906623]
[1759079331757,5.93097748,110570.0,110560.0,0.12906623]
[1759079331971,5.93097748,110570.0,110560.0,0.06390623]
[1759079332962,5.55544541,110570.0,110560.0,0.06390623]
[1759079333193,5.93097748,110570.0,110560.0,0.06390623]
[1759079334777,5.55544541,110570.0,110560.0,0.06390623]
[1759079335008,5.93097748,110570.0,110560.0,0.06390623]
[1759079337571,5.55544541,110570.0,110560.0,0.06390623]
[1759079337782,0.06423831,110570.0,110560.0,0.4394383]
[1759079337965,0.05004735,110570.0,110560.0,0.4394383]
[1759079338207,0.05004735,110570.0,110560.0,0.06390623]
[1759079338421,0.05004735,110570.0,110560.0,0.45162623]
[1759079339456,0.05004735,110570.0,110560.0,0.06390623]
[1759079339670,0.05004735,110570.0,110560.0,0.45178623]
[1759079339888,0.05004735,110570.0,110560.0,0.35750623]
[1759079341010,0.06423732,110570.0,110560.0,0.35750623]
[1759079341511,0.13112944,110570.0,110560.0,0.35750623]
[1759079341655,0.03756997,110570.0,110560.0,0.35750623]
[1759079343845,0.06435557,110570.0,110560.0,0.06390623]
[1759079343971,0.06435557,110570.0,110560.0,0.35758623]
[1759079344647,5.11939957,110570.0,110560.0,0.35746623]
[1759079344868,5.11939957,110570.0,110560.0,0.45170623]
[1759079346325,5.18798405,110570.0,110560.0,0.45170623]
[1759079347011,5.18798405,110570.0,110560.0,0.35746623]
[1759079348145,5.11939957,110570.0,110560.0,0.35746623]
[1759079349759,5.1052096,110570.0,110560.0,0.35746623]
[1759079350394,0.0501656,110570.0,110560.0,0.35746623]
[1759079351216,0.02338,110570.0,110560.0,0.35746623]
[1759079352947,0.03756997,110570.0,110560.0,0.35746623]
[1759079354809,0.06498502,110570.0,110560.0,0.35746623]
[1759079357831,0.06498502,110570.0,110560.0,0.45126623]
[1759079358886,0.06498502,110570.0,110560.0,0.8267983]
[1759079359660,0.03756997,110570.0,110560.0,0.8267983]
[1759079360003,0.02338,110570.0,110560.0,1.03784745]
[1759079360628,0.02338,110570.0,110560.0,1.03284745]
[1759079361053,0.02338,110570.0,110560.0,1.03784745]
[1759079361419,0.02338,110570.0,110560.0,1.03684745]
[1759079361819,0.02338,110570.0,110560.0,1.04084745]
[1759079362680,0.02338,110570.0,110560.0,1.05084745]
[1759079364095,0.02338,110570.0,110560.0,0.66348745]
[1759079364297,0.02338,110570.0,110560.0,1.42736745]
[1759079364905,0.02338,110570.0,110560.0,0.64148745]
[1759079365199,0.02338,110570.0,110560.0,1.40536745]
[1759079365408,0.02338,110570.0,110560.0,1.43236745]
[1759079366057,0.02338,110570.0,110560.0,1.50915723]
[1759079366277,0.02338,110570.0,110560.0,1.84915723]
[1759079366896,0.02338,110570.0,110560.0,1.8760145]
[1759079367343,0.02338,110570.0,110560.0,1.0971345]
[1759079367551,0.02338,110570.0,110560.0,1.8788145]
[1759079367761,0.02338,110570.0,110560.0,1.8668145]
[1759079367935,0.02338,110570.0,110560.0,1.8808145]
[1759079370312,0.02338,110570.0,110560.0,2.63149161]
[1759079370726,0.02338,110570.0,110560.0,2.63121161]
[1759079371240,0.02338,110570.0,110560.0,1.84095434]
[1759079371658,0.02338,110570.0,110560.0,2.60423434]
[1759079372502,0.02338,110570.0,110560.0,1.86766468]
[1759079372707,0.02338,110570.0,110560.0,2.63082468]
[1759079372913,0.02338,110570.0,110560.0,1.86766468]
[1759079373127,0.02338,110570.0,110560.0,2.63082468]
[1759079375790,0.02338,110570.0,110560.0,1.86766468]
[1759079375995,0.02338,110570.0,110560.0,2.63054468]
[1759079376722,0.02338,110570.0,110560.0,1.86766468]
[1759079377024,0.02338,110570.0,110560.0,2.63046468]
[1759079377893,0.02338,110570.0,110560.0,1.86766468]
[1759079378105,0.02338,110570.0,110560.0,2.63038468]
[1759079378863,0.84353794,110600.0,110590.0,0.04980008]
[1759079379309,0.84353794,110600.0,110590.0,0.02313]
[1759079379310,6.41941376,110600.0,110590.0,0.02313]
[1759079379524,6.41941376,110600.0,110590.0,0.21717008]
[1759079379761,6.26579264,110600.0,110590.0,0.21717008]
[1759079379970,6.26579264,110600.0,110590.0,0.07293008]
[1759079380179,6.94364267,110600.0,110590.0,0.36429008]
[1759079380289,6.94364267,110600.0,110590.0,0.07293008]
[1759079380493,6.94364267,110600.0,110590.0,0.36429008]
[1759079380699,6.94364267,110600.0,110590.0,0.37329008]
[1759079380907,6.96724267,110600.0,110590.0,0.37329008]
[1759079381131,6.96724267,110600.0,110590.0,0.36429008]
[1759079381331,6.59183961,110600.0,110590.0,0.37229008]
[1759079381536,6.60602723,110600.0,110590.0,0.08093008]
[1759079381947,6.60602723,110600.0,110590.0,0.18241008]